fUSD/lending_fUSD_20240420
["ID","MTS","AMOUNT","RATE_DAILY","PERIOD"]
[323040669,1713611461031,-500.0,0.00015342,2]
[323040670,1713611461041,-5162.7,0.00015342,2]
[323040671,1713611461050,-2849.81841322,0.00015342,2]
[323040672,1713611461707,-19602.61158678,0.00015342,2]
[323040673,1713611461716,-706.33,0.00015342,2]
[323040674,1713611461726,-500.0,0.00015342,2]
[323040675,1713611461736,-500.0,0.00015342,2]
[323040676,1713611461747,-725.12,0.00015342,2]
[323040677,1713611461757,-500.0,0.00015342,2]
[323040678,1713611461767,-4216.0,0.00015342,2]
[323040679,1713611461776,-500.0,0.00015342,2]
[323040680,1713611461787,-500.0,0.00015342,2]
[323040681,1713611461797,-1606.28,0.00015342,2]
[323040682,1713611461807,-1930.65,0.00015342,2]
[323040683,1713611461818,-151.0,0.00015342,2]
[323040684,1713611461829,-604.22,0.00015342,2]
[323040685,1713611461840,-500.0,0.00015342,2]
[323040686,1713611461851,-500.0,0.00015342,2]
[323040687,1713611461861,-3445.35,0.00015342,2]
[323040688,1713611461872,-500.0,0.00015342,2]
[323040689,1713611461882,-155.852947,0.00015342,2]
[323040690,1713611461893,-500.0,0.00015342,2]
[323040691,1713611461905,-500.0,0.00015342,2]
[323040692,1713611461915,-500.0,0.00015342,2]
[323040693,1713611461925,-500.0,0.00015342,2]
[323040694,1713611461934,-760.51,0.00015342,2]
[323040695,1713611461945,-500.0,0.00015342,2]
[323040696,1713611461955,-500.0,0.00015342,2]
[323040697,1713611461966,-500.0,0.00015342,2]
[323040698,1713611461976,-605.83,0.00015342,2]
[323040699,1713611461987,-1895.04,0.00015342,2]
[323040700,1713611461999,-783.75,0.00015342,2]
[323040701,1713611462012,-500.0,0.00015342,2]
[323040702,1713611462024,-3002.89,0.00015342,2]
[323040703,1713611462035,-500.0,0.00015342,2]
[323040704,1713611462045,-1971.73,0.00015342,2]
[323040705,1713611462055,-500.0,0.00015342,2]
[323040706,1713611462065,-4697.73,0.00015342,2]
[323040707,1713611462074,-671.97,0.00015342,2]
[323040708,1713611462086,-500.0,0.00015342,2]
[323040709,1713611462096,-3596.44,0.00015342,2]
[323040710,1713611462105,-634.17,0.00015342,2]
[323040711,1713611462114,-585.26,0.00015342,2]
[323040712,1713611462124,-500.0,0.00015342,2]
[323040713,1713611462134,-500.0,0.00015342,2]
[323040714,1713611462144,-500.0,0.00015342,2]
[323040715,1713611462155,-151.0,0.00015342,2]
[323040716,1713611462165,-1500.82,0.00015342,2]
[323040717,1713611462174,-500.0,0.00015342,2]
[323040718,1713611462184,-500.0,0.00015342,2]
[323040719,1713611462194,-174.76296694,0.00015345,2]
[323040720,1713611462203,-1075.01960883,0.0001535,2]
[323040721,1713611462213,-150.0,0.0001537,2]
[323040722,1713611462222,-150.0,0.0001537,2]
[323040723,1713611462231,-162.7,0.0001537,2]
[323040724,1713611462242,-150.0,0.0001537,2]
[323040725,1713611462252,-150.0,0.0001537,2]
[323040726,1713611462265,-162.7,0.0001537,2]
[323040727,1713611462275,-300.0,0.0001537,2]
[323040728,1713611462286,-150.0,0.0001537,2]
[323040729,1713611462297,-150.0,0.0001537,2]
[323040730,1713611462307,-162.7,0.0001537,2]
[323040731,1713611462317,-150.0,0.0001537,2]
[323040732,1713611462327,-350.29,0.0001537,2]
[323040733,1713611462339,-150.0,0.0001537,2]
[323040734,1713611462350,-162.7,0.0001537,2]
[323040735,1713611462360,-162.7,0.0001537,2]
[323040736,1713611462370,-150.0,0.0001537,2]
[323040737,1713611462380,-350.29,0.0001537,2]
[323040738,1713611462476,-1000.0,0.00015375,2]
[323040739,1713611462486,-200.0,0.00015375,2]
[323040740,1713611462496,-200.0,0.00015376,2]
[323040741,1713611462506,-1000.0,0.00015376,2]
[323040742,1713611462517,-1000.0,0.00015376,2]
[323040743,1713611462527,-300.0,0.00015376,2]
[323040744,1713611462538,-500.0,0.00015376,2]
[323040745,1713611462548,-200.0,0.00015376,2]
[323040746,1713611462558,-163.173148,0.0001547,2]
[323040747,1713611462568,-208.328747,0.0001547,2]
[323040748,1713611462577,-160.291633,0.0001547,2]
[323040749,1713611462588,-150.0,0.00015478,2]
[323040750,1713611462598,-150.0,0.00015478,2]
[323040751,1713611462609,-150.0,0.00015478,2]
[323040752,1713611462619,-150.0,0.00015478,2]
[323040753,1713611462629,-150.0,0.00015478,2]
[323040754,1713611462639,-150.0,0.00015478,2]
[323040755,1713611462649,-220.39,0.00015478,2]
[323040756,1713611462660,-901.1062705,0.00015487,2]
[323040757,1713611462670,-53109.1192564,0.00015487,2]
[323040758,1713611462680,-1304.3320147,0.00015487,2]
[323040759,1713611462689,-7483.1536781,0.00015487,2]
[323040760,1713611462699,-2676.7548353,0.00015487,2]
[323040761,1713611462708,-1205.8845126,0.00015487,2]
[323040762,1713611462718,-5722.1777295,0.00015487,2]
[323040763,1713611462727,-303.1184236,0.00015487,2]
[323040764,1713611462737,-150.0,0.00015492,2]
[323040765,1713611462746,-150.0,0.00015492,2]
[323040766,1713611462755,-150.0,0.00015492,2]
[323040767,1713611462765,-150.0,0.00015492,2]
[323040768,1713611462775,-150.0,0.00015492,2]
[323040769,1713611462785,-12248.21402447,0.00015494,2]
[323040770,1713611462795,-194.61707769,0.00015498,2]
[323040771,1713611462805,-362.23328882,0.00015498,2]
[323040772,1713611462816,-155.18316179,0.00015498,2]
[323040773,1713611462827,-197.86380696,0.00015498,2]
[323040774,1713611462837,-302.35813284,0.00015498,2]
[323040775,1713611462847,-303.22233463,0.00015498,2]
[323040776,1713611462857,-304.86243796,0.00015499,2]
[323040777,1713611462867,-206.98170683,0.00015499,2]
[323040778,1713611462878,-3927.22456754,0.00015499,2]
[323040779,1713611462889,-2250.09480175,0.000155,2]
[323040780,1713611462900,-331631.63736459,0.000155,2]
[323040781,1713611462910,-155.0,0.000155,2]
[323040782,1713611462921,-3313.96562417,0.000155,2]
[323040783,1713611462932,-2003.49,0.000155,2]
[323040784,1713611462942,-45227.60390325,0.000155,2]
[323040785,1713611463651,-4298.94191913,0.00014562,2]
[323040786,1713611463663,-5701.05808087,0.00014562,2]
[323040787,1713611463673,-500.0,0.00015068,2]
[323040788,1713611463683,-800.95533411,0.00015068,2]
[323040789,1713611463695,-6429.94466589,0.00015068,2]
[323040790,1713611463705,-500.0,0.00015068,2]
[323040791,1713611463715,-1828.69,0.00015342,2]
[323040792,1713611463725,-500.0,0.00015342,2]
[323040793,1713611463734,-151.0,0.00015342,2]
[323040794,1713611463743,-7230.9,0.00015342,2]
[323040795,1713611463753,-500.0,0.00015342,2]
[323040796,1713611463762,-31504.00018206,0.000155,2]
[323040797,1713611463771,-1040.35697366,0.000155,2]
[323040798,1713611463781,-151.0,0.000155,2]
[323040799,1713611463790,-151.0,0.000155,2]
[323040800,1713611463799,-151.0,0.000155,2]
[323040801,1713611463810,-151.0,0.000155,2]
[323040802,1713611463820,-151.0,0.000155,2]
[323040803,1713611463830,-151.0,0.000155,2]
[323040804,1713611463840,-151.0,0.000155,2]
[323040805,1713611463850,-151.0,0.000155,2]
[323040806,1713611463859,-3000.0,0.000155,2]
[323040807,1713611463869,-150.0,0.000155,2]
[323040808,1713611463878,-150.0,0.000155,2]
[323040809,1713611463888,-203.455649,0.000155,2]
[323040810,1713611463897,-151.0,0.000155,2]
[323040811,1713611463908,-203.455649,0.000155,2]
[323040812,1713611463918,-177.440691,0.000155,2]
[323040813,1713611463927,-177.440691,0.000155,2]
[323040814,1713611463937,-151.0,0.000155,2]
[323040815,1713611463947,-151.0,0.000155,2]
[323040816,1713611463957,-151.0,0.000155,2]
[323040817,1713611463966,-151.0,0.000155,2]
[323040818,1713611463976,-151.0,0.000155,2]
[323040819,1713611463986,-151.0,0.000155,2]
[323040820,1713611463995,-151.0,0.000155,2]
[323040821,1713611464005,-249.54295,0.000155,2]
[323040822,1713611464015,-151.0,0.000155,2]
[323040823,1713611464025,-249.54295,0.000155,2]
[323040824,1713611464034,-151.0,0.000155,2]
[323040825,1713611464043,-151.0,0.000155,2]
[323040826,1713611464052,-151.0,0.000155,2]
[323040827,1713611464061,-151.0,0.000155,2]
[323040828,1713611464070,-151.0,0.000155,2]
[323040829,1713611464080,-151.0,0.000155,2]
[323040830,1713611464089,-1092.533329,0.000155,2]
[323040831,1713611464099,-1092.533329,0.000155,2]
[323040832,1713611464108,-151.0,0.000155,2]
[323040833,1713611464117,-151.0,0.000155,2]
[323040834,1713611464127,-151.0,0.000155,2]
[323040835,1713611464136,-151.0,0.000155,2]
[323040836,1713611464146,-155.694803,0.000155,2]
[323040837,1713611464156,-151.0,0.000155,2]
[323040838,1713611464166,-2852.97186354,0.00015551,2]
[323040839,1713611464175,-2000.76893486,0.00015551,2]
[323040840,1713611464187,-875.6823234,0.000156,2]
[323040841,1713611464196,-49447.80692355,0.000156,2]
[323040842,1713611464208,-3823.94,0.000156,2]
[323040843,1713611464241,-8643.67207993,0.000156,2]
[323040844,1713611464253,-9257.40000601,0.000156,2]
[323040845,1713611464297,-17672.16735425,0.000156,2]
[323040846,1713611464307,-151.0,0.000156,2]
[323040847,1713611464316,-151.0,0.000156,2]
[323040848,1713611464326,-151.0,0.000156,2]
[323040849,1713611464335,-151.0,0.000156,2]
[323040850,1713611464344,-151.0,0.000156,2]
[323040851,1713611464353,-151.0,0.000156,2]
[323040852,1713611464363,-151.0,0.000156,2]
[323040853,1713611464372,-2331.803592,0.000156,2]
[323040854,1713611464381,-151.0,0.000156,2]
[323040855,1713611464391,-2331.803592,0.000156,2]
[323040856,1713611464401,-151.0,0.000156,2]
[323040857,1713611464410,-151.355709,0.000156,2]
[323040858,1713611464420,-151.0,0.000156,2]
[323040859,1713611464430,-151.0,0.000156,2]
[323040860,1713611464440,-173.856897,0.000156,2]
[323040861,1713611464450,-151.0,0.000156,2]
[323040862,1713611464459,-173.856897,0.000156,2]
[323040863,1713611464468,-151.0,0.000156,2]
[323040864,1713611464478,-151.0,0.000156,2]
[323040865,1713611464488,-167.164818,0.000156,2]
[323040866,1713611464498,-167.164818,0.000156,2]
[323040867,1713611464507,-300.0,0.00015615,2]
[323040868,1713611464516,-10000.0,0.00015616,2]
[323040869,1713611464525,-10000.0,0.00015616,2]
[323040870,1713611464535,-1857.05,0.00015616,2]
[323040871,1713611464544,-500.0,0.00015616,2]
[323040872,1713611464554,-500.0,0.00015616,2]
[323040873,1713611464564,-883.29,0.00015616,2]
[323040874,1713611464574,-500.0,0.00015616,2]
[323040875,1713611464584,-500.0,0.00015616,2]
[323040876,1713611464593,-713.88,0.00015616,2]
[323040877,1713611464602,-500.0,0.00015616,2]
[323040878,1713611464612,-590.88,0.00015616,2]
[323040879,1713611464621,-500.0,0.00015616,2]
[323040880,1713611464630,-322.25,0.00015616,2]
[323040881,1713611464639,-500.0,0.00015616,2]
[323040882,1713611464651,-588.52,0.00015616,2]
[323040883,1713611464659,-500.0,0.00015616,2]
[323040884,1713611464668,-500.0,0.00015616,2]
[323040885,1713611464677,-772.41,0.00015616,2]
[323040886,1713611464686,-589.74,0.00015616,2]
[323040887,1713611464696,-500.0,0.00015616,2]
[323040888,1713611464705,-500.0,0.00015616,2]
[323040889,1713611464715,-500.0,0.00015616,2]
[323040890,1713611464724,-500.0,0.00015616,2]
[323040891,1713611464734,-794.84,0.00015616,2]
[323040892,1713611464743,-500.0,0.00015616,2]
[323040893,1713611464753,-500.0,0.00015616,2]
[323040894,1713611464762,-1151.44,0.00015616,2]
[323040895,1713611464770,-541.27,0.00015616,2]
[323040896,1713611464780,-500.0,0.00015616,2]
[323040897,1713611464789,-500.0,0.00015616,2]
[323040898,1713611464798,-935.07,0.00015616,2]
[323040899,1713611464807,-151.0,0.00015616,2]
[323040900,1713611464817,-500.0,0.00015616,2]
[323040901,1713611464826,-500.0,0.00015616,2]
[323040902,1713611464835,-500.0,0.00015616,2]
[323040903,1713611464845,-500.0,0.00015616,2]
[323040904,1713611464855,-597.68,0.00015616,2]
[323040905,1713611464864,-500.0,0.00015616,2]
[323040906,1713611464874,-500.0,0.00015616,2]
[323040907,1713611464883,-914.0,0.00015616,2]
[323040908,1713611464892,-500.0,0.00015616,2]
[323040909,1713611464901,-500.0,0.00015616,2]
[323040910,1713611464911,-500.0,0.00015616,2]
[323040911,1713611464920,-151.0,0.00015616,2]
[323040912,1713611465082,-542.59,0.00015616,2]
[323040913,1713611465110,-500.0,0.00015616,2]
[323040914,1713611465120,-548.14828824,0.00015616,2]
[323040915,1713611465130,-921.09,0.00015616,2]
[323040916,1713611465140,-500.0,0.00015616,2]
[323040917,1713611465149,-500.0,0.00015616,2]
[323040918,1713611465160,-500.84832416,0.00015616,2]
[323040919,1713611465170,-616.51,0.00015616,2]
[323040920,1713611465180,-500.0,0.00015616,2]
[323040921,1713611465190,-181.58,0.00015616,2]
[323040922,1713611465199,-500.0,0.00015616,2]
[323040923,1713611465209,-500.0,0.00015616,2]
[323040924,1713611465219,-500.0,0.00015616,2]
[323040925,1713611465229,-725.79,0.00015616,2]
[323040926,1713611465239,-700.93,0.00015616,2]
[323040927,1713611465249,-500.0,0.00015616,2]
[323040928,1713611465260,-151.0,0.00015616,2]
[323040929,1713611465272,-500.0,0.00015616,2]
[323040930,1713611465282,-500.0,0.00015616,2]
[323040931,1713611465291,-557.48,0.00015616,2]
[323040932,1713611465301,-500.0,0.00015616,2]
[323040933,1713611465311,-526.87106109,0.00015616,2]
[323040934,1713611465321,-500.0,0.00015616,2]
[323040935,1713611465330,-503.06,0.00015616,2]
[323040936,1713611465341,-500.0,0.00015616,2]
[323040937,1713611465350,-500.0,0.00015616,2]
[323040938,1713611465359,-582.58,0.00015616,2]
[323040939,1713611465369,-500.0,0.00015616,2]
[323040940,1713611465378,-536.34,0.00015616,2]
[323040941,1713611465387,-500.0,0.00015616,2]
[323040942,1713611465396,-154.421693,0.00015616,2]
[323040943,1713611465407,-546.61,0.00015616,2]
[323040944,1713611465417,-500.0,0.00015616,2]
[323040945,1713611465427,-500.0,0.00015616,2]
[323040946,1713611465437,-500.0,0.00015616,2]
[323040947,1713611465447,-500.0,0.00015616,2]
[323040948,1713611465457,-500.0,0.00015616,2]
[323040949,1713611465466,-500.0,0.00015616,2]
[323040950,1713611465476,-500.0,0.00015616,2]
[323040951,1713611465486,-535.40485617,0.00015616,2]
[323040952,1713611465495,-500.0,0.00015616,2]
[323040953,1713611465505,-500.0,0.00015616,2]
[323040954,1713611465514,-500.0,0.00015616,2]
[323040955,1713611465523,-500.0,0.00015616,2]
[323040956,1713611465533,-500.0,0.00015616,2]
[323040957,1713611465542,-1030.65,0.00015616,2]
[323040958,1713611465552,-211.26,0.00015616,2]
[323040959,1713611465561,-594.09,0.00015616,2]
[323040960,1713611465571,-841.22,0.00015616,2]
[323040961,1713611465581,-500.0,0.00015616,2]
[323040962,1713611465590,-151.0,0.00015616,2]
[323040963,1713611465600,-725.61,0.00015616,2]
[323040964,1713611465609,-151.0,0.00015616,2]
[323040965,1713611465619,-500.0,0.00015616,2]
[323040966,1713611465628,-929.3,0.00015616,2]
[323040967,1713611465637,-500.0,0.00015616,2]
[323040968,1713611465646,-513.42291167,0.00015616,2]
[323040969,1713611465657,-500.0,0.00015616,2]
[323040970,1713611465667,-500.0,0.00015616,2]
[323040971,1713611465676,-683.72,0.00015616,2]
[323040972,1713611465686,-500.0,0.00015616,2]
[323040973,1713611465695,-811.7,0.00015616,2]
[323040974,1713611465704,-565.98,0.00015616,2]
[323040975,1713611465713,-556.79,0.00015616,2]
[323040976,1713611465723,-656.25,0.00015616,2]
[323040977,1713611465733,-500.0,0.00015616,2]
[323040978,1713611465742,-500.0,0.00015616,2]
[323040979,1713611465752,-698.02,0.00015616,2]
[323040980,1713611465761,-500.0,0.00015616,2]
[323040981,1713611465770,-500.0,0.00015616,2]
[323040982,1713611465779,-169.392009,0.00015616,2]
[323040983,1713611465788,-500.0,0.00015616,2]
[323040984,1713611465798,-169.392009,0.00015616,2]
[323040985,1713611465807,-500.0,0.00015616,2]
[323040986,1713611465817,-500.0,0.00015616,2]
[323040987,1713611465826,-520.94,0.00015616,2]
[323040988,1713611465835,-500.0,0.00015616,2]
[323040989,1713611465844,-500.0,0.00015616,2]
[323040990,1713611465854,-1558.43,0.00015616,2]
[323040991,1713611465863,-1035.17,0.00015616,2]
[323040992,1713611465872,-500.0,0.00015616,2]
[323040993,1713611465881,-576.28,0.00015616,2]
[323040994,1713611465891,-603.43,0.00015616,2]
[323040995,1713611465900,-500.0,0.00015616,2]
[323040996,1713611465910,-500.0,0.00015616,2]
[323040997,1713611465920,-878.1,0.00015616,2]
[323040998,1713611465930,-500.0,0.00015616,2]
[323040999,1713611465939,-662.95,0.00015616,2]
[323041000,1713611465949,-620.95,0.00015616,2]
[323041001,1713611465958,-500.0,0.00015616,2]
[323041002,1713611465967,-740.29,0.00015616,2]
[323041003,1713611465976,-596.8,0.00015616,2]
[323041004,1713611465985,-500.0,0.00015616,2]
[323041005,1713611465994,-500.0,0.00015616,2]
[323041006,1713611466003,-500.0,0.00015616,2]
[323041007,1713611466013,-618.37,0.00015616,2]
[323041008,1713611466022,-500.0,0.00015616,2]
[323041009,1713611466031,-945.05,0.00015616,2]
[323041010,1713611466041,-716.56,0.00015616,2]
[323041011,1713611466050,-500.0,0.00015616,2]
[323041012,1713611466059,-329.744178,0.00015616,2]
[323041013,1713611466068,-184.381717,0.00015616,2]
[323041014,1713611466078,-151.0,0.00015616,2]
[323041015,1713611466087,-777.79,0.00015616,2]
[323041016,1713611466096,-500.0,0.00015616,2]
[323041017,1713611466106,-1273.08,0.00015616,2]
[323041018,1713611466115,-500.0,0.00015616,2]
[323041019,1713611466124,-500.0,0.00015616,2]
[323041020,1713611466134,-640.1,0.00015616,2]
[323041021,1713611466144,-176.94494,0.00015616,2]
[323041022,1713611466156,-500.0,0.00015616,2]
[323041023,1713611466165,-500.0,0.00015616,2]
[323041024,1713611466174,-329.744178,0.00015616,2]
[323041025,1713611466184,-881.44,0.00015616,2]
[323041026,1713611466193,-500.0,0.00015616,2]
[323041027,1713611466202,-500.0,0.00015616,2]
[323041028,1713611466213,-500.0,0.00015616,2]
[323041029,1713611466224,-500.0,0.00015616,2]
[323041030,1713611466236,-500.0,0.00015616,2]
[323041031,1713611466245,-500.0,0.00015616,2]
[323041032,1713611466255,-500.0,0.00015616,2]
[323041033,1713611466267,-762.22,0.00015616,2]
[323041034,1713611466276,-500.0,0.00015616,2]
[323041035,1713611466285,-500.0,0.00015616,2]
[323041036,1713611466295,-1235.55,0.00015616,2]
[323041037,1713611466305,-559.75,0.00015616,2]
[323041038,1713611466315,-695.53,0.00015616,2]
[323041039,1713611466324,-500.0,0.00015616,2]
[323041040,1713611466335,-895.61,0.00015616,2]
[323041041,1713611466346,-500.0,0.00015616,2]
[323041042,1713611466356,-500.0,0.00015616,2]
[323041043,1713611466366,-922.84,0.00015616,2]
[323041044,1713611466375,-152.586028,0.00015616,2]
[323041045,1713611466385,-151.0,0.00015616,2]
[323041046,1713611466395,-500.0,0.00015616,2]
[323041047,1713611466406,-500.0,0.00015616,2]
[323041048,1713611466416,-741.21,0.00015616,2]
[323041049,1713611466425,-578.94,0.00015616,2]
[323041050,1713611466435,-525.75,0.00015616,2]
[323041051,1713611466444,-553.94,0.00015616,2]
[323041052,1713611466453,-500.0,0.00015616,2]
[323041053,1713611466463,-519.72,0.00015616,2]
[323041054,1713611466473,-500.0,0.00015616,2]
[323041055,1713611466482,-1371.03,0.00015616,2]
[323041056,1713611466491,-1242.108337,0.00015616,2]
[323041057,1713611466500,-500.0,0.00015616,2]
[323041058,1713611466509,-500.0,0.00015616,2]
[323041059,1713611466520,-1000.57,0.00015616,2]
[323041060,1713611466529,-500.0,0.00015616,2]
[323041061,1713611466539,-500.0,0.00015616,2]
[323041062,1713611466548,-1242.108337,0.00015616,2]
[323041063,1713611466558,-857.28,0.00015616,2]
[323041064,1713611466567,-726.62,0.00015616,2]
[323041065,1713611466577,-612.75,0.00015616,2]
[323041066,1713611466586,-500.0,0.00015616,2]
[323041067,1713611466596,-500.0,0.00015616,2]
[323041068,1713611466606,-500.0,0.00015616,2]
[323041069,1713611466615,-1097.66,0.00015616,2]
[323041070,1713611466625,-500.0,0.00015616,2]
[323041071,1713611466635,-709.95,0.00015616,2]
[323041072,1713611466644,-20000.0,0.00015616,5]
[323041073,1713611466654,-500.0,0.00015616,2]
[323041074,1713611466664,-559.37,0.00015616,2]
[323041075,1713611466673,-500.0,0.00015616,2]
[323041076,1713611466683,-755.38,0.00015616,2]
[323041077,1713611466693,-500.0,0.00015616,2]
[323041078,1713611466703,-500.0,0.00015616,2]
[323041079,1713611466712,-500.0,0.00015616,2]
[323041080,1713611466722,-500.0,0.00015616,2]
[323041081,1713611466731,-500.0,0.00015616,2]
[323041082,1713611466740,-500.0,0.00015616,2]
[323041083,1713611466750,-532.35,0.00015616,2]
[323041084,1713611466759,-810.66,0.00015616,2]
[323041085,1713611466770,-791.15,0.00015616,2]
[323041086,1713611466780,-151.0,0.00015616,2]
[323041087,1713611466793,-577.88,0.00015616,2]
[323041088,1713611466804,-892.0,0.00015616,2]
[323041089,1713611466815,-521.75,0.00015616,2]
[323041090,1713611466827,-500.0,0.00015616,2]
[323041091,1713611466839,-500.0,0.00015616,2]
[323041092,1713611466850,-632.68,0.00015616,2]
[323041093,1713611466860,-500.0,0.00015616,2]
[323041094,1713611466869,-500.0,0.00015616,2]
[323041095,1713611466880,-500.0,0.00015616,2]
[323041096,1713611466891,-500.0,0.00015616,2]
[323041097,1713611466901,-500.0,0.00015616,2]
[323041098,1713611466912,-500.0,0.00015616,2]
[323041099,1713611466923,-500.0,0.00015616,2]
[323041100,1713611466934,-843.99,0.00015616,2]
[323041101,1713611466945,-500.0,0.00015616,2]
[323041102,1713611466956,-500.0,0.00015616,2]
[323041103,1713611466967,-500.0,0.00015616,2]
[323041104,1713611466978,-500.0,0.00015616,2]
[323041105,1713611466989,-500.0,0.00015616,2]
[323041106,1713611466999,-500.0,0.00015616,2]
[323041107,1713611467010,-195.85295173,0.00015616,2]
[323041108,1713611468247,-319.03875186,0.00015068,2]
[323041109,1713611468260,-180.96124814,0.00015068,2]
[323041110,1713611468271,-299.69892853,0.00015068,2]
[323041111,1713611469387,-155.0,0.00014561,2]
[323041112,1713611469397,-200.30107147,0.00015068,2]
[323041113,1713611469408,-500.0,0.00015068,2]
[323041114,1713611469418,-500.0,0.00015068,2]
[323041115,1713611469427,-500.0,0.00015068,2]
[323041116,1713611469437,-500.0,0.00015068,2]
[323041117,1713611469447,-500.0,0.00015068,2]
[323041118,1713611469455,-500.0,0.00015342,2]
[323041119,1713611469464,-500.0,0.00015342,2]
[323041120,1713611469475,-247.71,0.00015342,2]
[323041121,1713611469485,-500.0,0.00015342,2]
[323041122,1713611469495,-500.0,0.00015342,2]
[323041123,1713611469505,-500.0,0.00015342,2]
[323041124,1713611469514,-162.7,0.0001537,2]
[323041125,1713611469523,-350.29,0.0001537,2]
[323041126,1713611469533,-304.14704827,0.00015616,2]
[323041127,1713611469542,-867.5,0.00015616,2]
[323041128,1713611469551,-500.0,0.00015616,2]
[323041129,1713611469562,-500.0,0.00015616,2]
[323041130,1713611469571,-1023.85,0.00015616,2]
[323041131,1713611469580,-500.0,0.00015616,2]
[323041132,1713611469590,-500.0,0.00015616,2]
[323041133,1713611469599,-1042.11,0.00015616,2]
[323041134,1713611469609,-500.0,0.00015616,2]
[323041135,1713611469618,-489.65370128,0.00015616,2]
[323041136,1713611469628,-1226.68,0.00015616,2]
[323041137,1713611469637,-572.58,0.00015616,2]
[323041138,1713611469646,-500.0,0.00015616,2]
[323041139,1713611469655,-564.25,0.00015616,2]
[323041140,1713611469667,-721.07,0.00015616,2]
[323041141,1713611469676,-500.0,0.00015616,2]
[323041142,1713611469686,-500.0,0.00015616,2]
[323041143,1713611469696,-500.0,0.00015616,2]
[323041144,1713611469705,-500.0,0.00015616,2]
[323041145,1713611469715,-500.0,0.00015616,2]
[323041146,1713611469728,-500.0,0.00015616,2]
[323041147,1713611469737,-765.69,0.00015616,2]
[323041148,1713611469746,-500.0,0.00015616,2]
[323041149,1713611469755,-500.0,0.00015616,2]
[323041150,1713611469765,-500.0,0.00015616,2]
[323041151,1713611469774,-508.67,0.00015616,2]
[323041152,1713611469783,-1070.11,0.00015616,2]
[323041153,1713611469792,-500.0,0.00015616,2]
[323041154,1713611469801,-1307.81,0.00015616,2]
[323041155,1713611469811,-500.0,0.00015616,2]
[323041156,1713611469820,-500.0,0.00015616,2]
[323041157,1713611469830,-498.2190946,0.00015616,2]
[323041158,1713611469841,-585.19,0.00015616,2]
[323041159,1713611469852,-500.0,0.00015616,2]
[323041160,1713611469861,-500.0,0.00015616,2]
[323041161,1713611469870,-500.0,0.00015616,2]
[323041162,1713611469879,-558.07,0.00015616,2]
[323041163,1713611469889,-653.05,0.00015616,2]
[323041164,1713611469899,-500.0,0.00015616,2]
[323041165,1713611469911,-500.0,0.00015616,2]
[323041166,1713611469921,-500.0,0.00015616,2]
[323041167,1713611469930,-651.68,0.00015616,2]
[323041168,1713611469939,-500.0,0.00015616,2]